fUSD/lending_fUSD_20250916
["ID","MTS","AMOUNT","RATE_DAILY","PERIOD"]
[385775472,1758031851774,-400.0,0.00030136,6]
[385775473,1758031851783,-402.01975687,0.00030136,6]
[385775474,1758031851792,-509.06,0.00030136,6]
[385775475,1758031851802,-400.0,0.00030136,6]
[385775476,1758031851812,-400.0,0.00030136,6]
[385775477,1758031851821,-400.0,0.00030136,6]
[385775478,1758031851831,-400.0,0.00030136,6]
[385775479,1758031851840,-400.0,0.00030136,6]
[385775480,1758031851850,-400.0,0.00030136,6]
[385775481,1758031851860,-400.0,0.00030136,6]
[385775482,1758031851870,-585.92,0.00030136,6]
[385775483,1758031851883,-400.0,0.00030136,6]
[385775484,1758031851893,-400.0,0.00030136,6]
[385775485,1758031851902,-400.0,0.00030136,6]
[385775486,1758031851911,-400.0,0.00030136,6]
[385775487,1758031851920,-400.0,0.00030136,6]
[385775488,1758031851930,-400.0,0.00030136,6]
[385775489,1758031851939,-400.0,0.00030136,6]
[385775490,1758031851949,-400.0,0.00030136,6]
[385775491,1758031851958,-400.0,0.00030136,6]
[385775492,1758031851967,-400.0,0.00030136,6]
[385775493,1758031851977,-400.0,0.00030136,6]
[385775494,1758031851986,-400.0,0.00030136,6]
[385775495,1758031851995,-400.0,0.00030136,6]
[385775496,1758031852005,-538.41,0.00030136,6]
[385775497,1758031852015,-400.0,0.00030136,6]
[385775498,1758031852024,-400.0,0.00030136,6]
[385775499,1758031852033,-400.0,0.00030136,6]
[385775500,1758031852042,-400.0,0.00030136,6]
[385775501,1758031852051,-400.0,0.00030136,6]
[385775502,1758031852060,-400.0,0.00030136,6]
[385775503,1758031852072,-400.0,0.00030136,6]
[385775504,1758031852082,-400.0,0.00030136,6]
[385775505,1758031852091,-400.0,0.00030136,6]
[385775506,1758031852100,-400.0,0.00030136,6]
[385775507,1758031852109,-400.0,0.00030136,6]
[385775508,1758031852119,-400.0,0.00030136,6]
[385775509,1758031852128,-400.0,0.00030136,6]
[385775510,1758031852136,-402.43111031,0.00030136,6]
[385775511,1758031852145,-400.0,0.00030136,6]
[385775512,1758031852155,-880.04,0.00030136,6]
[385775513,1758031852164,-400.0,0.00030136,6]
[385775514,1758031852174,-400.0,0.00030136,6]
[385775515,1758031852183,-400.0,0.00030136,6]
[385775516,1758031852192,-400.0,0.00030136,6]
[385775517,1758031852201,-400.0,0.00030136,6]
[385775518,1758031852211,-639.21,0.00030136,6]
[385775519,1758031852221,-400.0,0.00030136,6]
[385775520,1758031852231,-400.0,0.00030136,6]
[385775521,1758031852239,-400.0,0.00030136,6]
[385775522,1758031852248,-400.0,0.00030136,6]
[385775523,1758031852258,-400.0,0.00030136,6]
[385775524,1758031852268,-400.0,0.00030136,6]
[385775525,1758031852277,-403.53998342,0.00030136,6]
[385775526,1758031852286,-400.0,0.00030136,6]
[385775527,1758031852296,-400.0,0.00030136,6]
[385775528,1758031852305,-400.0,0.00030136,6]
[385775529,1758031852314,-400.0,0.00030136,6]
[385775530,1758031852324,-400.0,0.00030136,6]
[385775531,1758031852335,-400.0,0.00030136,6]
[385775532,1758031852345,-400.0,0.00030136,6]
[385775533,1758031852355,-400.0,0.00030136,6]
[385775534,1758031852364,-400.0,0.00030136,6]
[385775535,1758031852373,-634.55,0.00030136,6]
[385775536,1758031852383,-400.0,0.00030136,6]
[385775537,1758031852392,-400.0,0.00030136,6]
[385775538,1758031852402,-400.0,0.00030136,6]
[385775539,1758031852411,-400.0,0.00030136,6]
[385775540,1758031852420,-400.0,0.00030136,6]
[385775541,1758031852429,-467.70334911,0.00030136,6]
[385775542,1758031852438,-400.0,0.00030136,6]
[385775543,1758031852448,-400.0,0.00030136,6]
[385775544,1758031852457,-1884.61,0.00030136,6]
[385775545,1758031852468,-400.0,0.00030136,6]
[385775546,1758031852477,-400.0,0.00030136,6]
[385775547,1758031852486,-400.0,0.00030136,6]
[385775548,1758031852495,-539.08,0.00030136,6]
[385775549,1758031852505,-452.06,0.00030136,6]
[385775550,1758031852515,-400.0,0.00030136,6]
[385775551,1758031852525,-260.38155787,0.00030136,6]
[385775552,1758031852534,-400.0,0.00030136,6]
[385775553,1758031852543,-405.82441029,0.00030136,6]
[385775554,1758031852552,-400.0,0.00030136,6]
[385775555,1758031852562,-400.0,0.00030136,6]
[385775556,1758031852571,-400.0,0.00030136,6]
[385775557,1758031852580,-403.65267069,0.00030136,6]
[385775558,1758031852589,-400.0,0.00030136,6]
[385775559,1758031852598,-435.98,0.00030136,6]
[385775560,1758031852607,-400.0,0.00030136,6]
[385775561,1758031852617,-400.0,0.00030136,6]
[385775562,1758031852626,-400.0,0.00030136,6]
[385775563,1758031852637,-493.27,0.00030136,6]
[385775564,1758031852646,-400.0,0.00030136,6]
[385775565,1758031852655,-400.0,0.00030136,6]
[385775566,1758031852665,-400.0,0.00030136,6]
[385775567,1758031852674,-422.23,0.00030136,6]
[385775568,1758031852683,-907.62,0.00030136,6]
[385775569,1758031852692,-415.94041862,0.00030136,6]
[385775570,1758031852702,-400.0,0.00030136,6]
[385775571,1758031852710,-400.0,0.00030136,6]
[385775572,1758031852719,-413.86,0.00030136,6]
[385775573,1758031852729,-400.0,0.00030136,6]
[385775574,1758031852738,-248.54384561,0.00030136,6]
[385775575,1758031852747,-217.572927,0.00030136,6]
[385775576,1758031852757,-400.0,0.00030136,6]
[385775577,1758031852766,-400.0,0.00030136,6]
[385775578,1758031852776,-217.572927,0.00030136,6]
[385775579,1758031852785,-649.85,0.00030136,6]
[385775580,1758031852795,-400.0,0.00030136,6]
[385775581,1758031852804,-150.981206,0.00030136,6]
[385775582,1758031852814,-150.981206,0.00030136,6]
[385775583,1758031852823,-400.0,0.00030136,6]
[385775584,1758031852833,-476.53,0.00030136,6]
[385775585,1758031852842,-400.0,0.00030136,6]
[385775586,1758031852852,-400.0,0.00030136,6]
[385775587,1758031852861,-400.0,0.00030136,6]
[385775588,1758031852872,-400.0,0.00030136,6]
[385775589,1758031852886,-400.0,0.00030136,6]
[385775590,1758031852896,-619.58,0.00030136,6]
[385775591,1758031852905,-400.0,0.00030136,6]
[385775592,1758031852915,-183.771181,0.00030136,6]
[385775593,1758031852926,-183.771181,0.00030136,6]
[385775594,1758031852935,-301.27160574,0.00030136,6]
[385775595,1758031852945,-400.0,0.00030136,6]
[385775596,1758031852955,-400.0,0.00030136,6]
[385775597,1758031852964,-400.0,0.00030136,6]
[385775598,1758031852974,-400.0,0.00030136,6]
[385775599,1758031852983,-615.11,0.00030136,6]
[385775600,1758031852992,-400.0,0.00030136,6]
[385775601,1758031853001,-400.0,0.00030136,6]
[385775602,1758031853011,-400.0,0.00030136,6]
[385775603,1758031853020,-400.0,0.00030136,6]
[385775604,1758031853029,-400.0,0.00030136,6]
[385775605,1758031853040,-400.0,0.00030136,6]
[385775606,1758031853050,-476.45,0.00030136,6]
[385775607,1758031853059,-400.0,0.00030136,6]
[385775608,1758031853067,-400.0,0.00030136,6]
[385775609,1758031853077,-667.47,0.00030136,6]
[385775610,1758031853086,-400.0,0.00030136,6]
[385775611,1758031853095,-400.0,0.00030136,6]
[385775612,1758031853104,-400.0,0.00030136,6]
[385775613,1758031853114,-400.0,0.00030136,6]
[385775614,1758031853123,-400.0,0.00030136,6]
[385775615,1758031853133,-572.39,0.00030136,6]
[385775616,1758031853142,-529.83,0.00030136,6]
[385775617,1758031853151,-400.0,0.00030136,6]
[385775618,1758031853160,-400.0,0.00030136,6]
[385775619,1758031853169,-400.0,0.00030136,6]
[385775620,1758031853178,-400.0,0.00030136,6]
[385775621,1758031853187,-850.94,0.00030136,6]
[385775622,1758031853197,-400.0,0.00030136,6]
[385775623,1758031853206,-400.0,0.00030136,6]
[385775624,1758031853215,-400.0,0.00030136,6]
[385775625,1758031853224,-1104.27,0.00030136,6]
[385775626,1758031853234,-400.0,0.00030136,6]
[385775627,1758031853243,-400.0,0.00030136,6]
[385775628,1758031853252,-400.0,0.00030136,6]
[385775629,1758031853262,-771.61,0.00030136,6]
[385775630,1758031853271,-419.8,0.00030136,6]
[385775631,1758031853280,-400.0,0.00030136,6]
[385775632,1758031853290,-284.81310668,0.00030136,6]
[385775633,1758031853299,-405.49732266,0.00030136,6]
[385775634,1758031853309,-455.93,0.00030136,6]
[385775635,1758031853319,-411.76894805,0.00030136,6]
[385775636,1758031853328,-400.0,0.00030136,6]
[385775637,1758031853346,-400.0,0.00030136,6]
[385775638,1758031853358,-400.0,0.00030136,6]
[385775639,1758031853367,-400.0,0.00030136,6]
[385775640,1758031853377,-400.0,0.00030136,6]
[385775641,1758031853387,-400.0,0.00030136,6]
[385775642,1758031853396,-400.0,0.00030136,6]
[385775643,1758031853405,-400.0,0.00030136,6]
[385775644,1758031853414,-735.66,0.00030136,6]
[385775645,1758031853423,-400.0,0.00030136,6]
[385775646,1758031853432,-400.0,0.00030136,6]
[385775647,1758031853441,-400.0,0.00030136,6]
[385775648,1758031853451,-400.0,0.00030136,6]
[385775649,1758031853460,-400.0,0.00030136,6]
[385775650,1758031853470,-400.0,0.00030136,6]
[385775651,1758031853479,-400.0,0.00030136,6]
[385775652,1758031853487,-632.29,0.00030136,6]
[385775653,1758031853496,-400.0,0.00030136,6]
[385775654,1758031853506,-509.85,0.00030136,6]
[385775655,1758031853515,-400.0,0.00030136,6]
[385775656,1758031853524,-400.0,0.00030136,6]
[385775657,1758031853533,-400.0,0.00030136,6]
[385775658,1758031853542,-400.0,0.00030136,6]
[385775659,1758031853551,-400.0,0.00030136,6]
[385775660,1758031853560,-400.0,0.00030136,6]
[385775661,1758031853570,-481.7,0.00030136,6]
[385775662,1758031853579,-400.0,0.00030136,6]
[385775663,1758031853588,-400.0,0.00030136,6]
[385775664,1758031853598,-400.0,0.00030136,6]
[385775665,1758031853607,-400.0,0.00030136,6]
[385775666,1758031853616,-400.0,0.00030136,6]
[385775667,1758031853626,-400.0,0.00030136,6]
[385775668,1758031853636,-427.36601198,0.00030136,6]
[385775669,1758031853645,-400.0,0.00030136,6]
[385775670,1758031853654,-648.4,0.00030136,6]
[385775671,1758031853664,-400.0,0.00030136,6]
[385775672,1758031853674,-400.0,0.00030136,6]
[385775673,1758031853683,-400.0,0.00030136,6]
[385775674,1758031853693,-400.0,0.00030136,6]
[385775675,1758031853702,-400.0,0.00030136,6]
[385775676,1758031853711,-400.0,0.00030136,6]
[385775677,1758031853720,-400.0,0.00030136,6]
[385775678,1758031853729,-400.0,0.00030136,6]
[385775679,1758031853738,-400.0,0.00030136,6]
[385775680,1758031853747,-400.0,0.00030136,6]
[385775681,1758031853757,-400.0,0.00030136,6]
[385775682,1758031853767,-400.0,0.00030136,6]
[385775683,1758031853776,-478.81,0.00030136,6]
[385775684,1758031853786,-400.0,0.00030136,6]
[385775685,1758031853797,-400.0,0.00030136,6]
[385775686,1758031853807,-400.0,0.00030136,6]
[385775687,1758031853816,-400.0,0.00030136,6]
[385775688,1758031853825,-400.0,0.00030136,6]
[385775689,1758031853835,-400.0,0.00030136,6]
[385775690,1758031853845,-400.0,0.00030136,6]
[385775691,1758031853855,-400.0,0.00030136,6]
[385775692,1758031853864,-400.0,0.00030136,6]
[385775693,1758031853875,-400.0,0.00030136,6]
[385775694,1758031853887,-400.0,0.00030136,6]
[385775695,1758031853897,-400.0,0.00030136,6]
[385775696,1758031853906,-400.0,0.00030136,6]
[385775697,1758031853915,-400.0,0.00030136,6]
[385775698,1758031853924,-400.0,0.00030136,6]
[385775699,1758031853934,-419.1,0.00030136,6]
[385775700,1758031853943,-400.0,0.00030136,6]
[385775701,1758031853953,-400.0,0.00030136,6]
[385775702,1758031853963,-400.0,0.00030136,6]
[385775703,1758031853973,-400.0,0.00030136,6]
[385775704,1758031853983,-400.0,0.00030136,6]
[385775705,1758031853992,-403.5012073,0.00030136,6]
[385775706,1758031854001,-400.0,0.00030136,6]
[385775707,1758031854011,-400.0,0.00030136,6]
[385775708,1758031854020,-400.0,0.00030136,6]
[385775709,1758031854030,-400.0,0.00030136,6]
[385775710,1758031854039,-400.0,0.00030136,6]
[385775711,1758031854049,-400.0,0.00030136,6]
[385775712,1758031854058,-400.0,0.00030136,6]
[385775713,1758031854068,-510.93815023,0.00030136,6]
[385775714,1758031854078,-400.0,0.00030136,6]
[385775715,1758031854087,-408.53,0.00030136,6]
[385775716,1758031854097,-616.15,0.00030136,6]
[385775717,1758031854106,-400.0,0.00030136,6]
[385775718,1758031854115,-450.82,0.00030136,6]
[385775719,1758031854125,-400.0,0.00030136,6]
[385775720,1758031854135,-496.99,0.00030136,6]
[385775721,1758031854144,-400.0,0.00030136,6]
[385775722,1758031854153,-400.0,0.00030136,6]
[385775723,1758031854163,-400.0,0.00030136,6]
[385775724,1758031854172,-400.0,0.00030136,6]
[385775725,1758031854182,-400.0,0.00030136,6]
[385775726,1758031854193,-400.0,0.00030136,6]
[385775727,1758031854203,-401.32,0.00030136,6]
[385775728,1758031854212,-400.0,0.00030136,6]
[385775729,1758031854222,-478.0018378,0.00030136,6]
[385775730,1758031854232,-400.0,0.00030136,6]
[385775731,1758031854243,-713.26,0.00030136,6]
[385775732,1758031854252,-400.0,0.00030136,6]
[385775733,1758031854261,-400.0,0.00030136,6]
[385775734,1758031854271,-400.0,0.00030136,6]
[385775735,1758031854280,-400.0,0.00030136,6]
[385775736,1758031854290,-444.55,0.00030136,6]
[385775737,1758031854299,-400.0,0.00030136,6]
[385775738,1758031854309,-400.0,0.00030136,6]
[385775739,1758031854318,-400.0,0.00030136,6]
[385775740,1758031854328,-400.0,0.00030136,6]
[385775741,1758031854337,-400.0,0.00030136,6]
[385775742,1758031854347,-400.0,0.00030136,6]
[385775743,1758031854356,-400.0,0.00030136,6]
[385775744,1758031854367,-400.0,0.00030136,6]
[385775745,1758031854377,-400.0,0.00030136,6]
[385775746,1758031854388,-400.0,0.00030136,6]
[385775747,1758031854398,-400.0,0.00030136,6]
[385775748,1758031854408,-664.58,0.00030136,6]
[385775749,1758031854418,-401.80500718,0.00030136,6]
[385775750,1758031854429,-400.0,0.00030136,6]
[385775751,1758031854439,-400.0,0.00030136,6]
[385775752,1758031854449,-400.0,0.00030136,6]
[385775753,1758031854459,-400.0,0.00030136,6]
[385775754,1758031854470,-404.29548403,0.00030136,6]
[385775755,1758031854481,-400.0,0.00030136,6]
[385775756,1758031854491,-400.0,0.00030136,6]
[385775757,1758031854501,-400.0,0.00030136,6]
[385775758,1758031854510,-472.38,0.00030136,6]
[385775759,1758031854520,-400.0,0.00030136,6]
[385775760,1758031854531,-613.21,0.00030136,6]
[385775761,1758031854542,-400.0,0.00030136,6]
[385775762,1758031854551,-400.0,0.00030136,6]
[385775763,1758031854562,-519.57,0.00030136,6]
[385775764,1758031854572,-419.78191754,0.00030136,6]
[385775765,1758031854582,-400.0,0.00030136,6]
[385775766,1758031854592,-400.0,0.00030136,6]
[385775767,1758031854602,-400.0,0.00030136,6]
[385775768,1758031854613,-400.0,0.00030136,6]
[385775769,1758031854624,-400.0,0.00030136,6]
[385775770,1758031854635,-400.0,0.00030136,6]
[385775771,1758031854645,-400.0,0.00030136,6]
[385775772,1758031854655,-400.0,0.00030136,6]
[385775773,1758031854664,-400.0,0.00030136,6]
[385775774,1758031854674,-400.0,0.00030136,6]
[385775775,1758031854686,-400.0,0.00030136,6]
[385775776,1758031854698,-400.0,0.00030136,6]
[385775777,1758031854708,-598.78,0.00030136,6]
[385775778,1758031854718,-400.0,0.00030136,6]
[385775779,1758031854728,-400.59,0.00030136,6]
[385775780,1758031854738,-515.83,0.00030136,6]
[385775781,1758031854748,-463.63,0.00030136,6]
[385775782,1758031854757,-400.0,0.00030136,6]
[385775783,1758031854767,-400.0,0.00030136,6]
[385775784,1758031854777,-400.0,0.00030136,6]
[385775785,1758031854787,-400.0,0.00030136,6]
[385775786,1758031854797,-400.0,0.00030136,6]
[385775787,1758031854807,-400.0,0.00030136,6]
[385775788,1758031854817,-526.46,0.00030136,6]
[385775789,1758031854827,-402.29898045,0.00030136,6]
[385775790,1758031854836,-400.0,0.00030136,6]
[385775791,1758031854846,-400.0,0.00030136,6]
[385775792,1758031854856,-400.0,0.00030136,6]
[385775793,1758031854867,-400.0,0.00030136,6]
[385775794,1758031854881,-400.0,0.00030136,6]
[385775795,1758031854891,-400.0,0.00030136,6]
[385775796,1758031854901,-400.0,0.00030136,6]
[385775797,1758031854911,-400.0,0.00030136,6]
[385775798,1758031854921,-400.0,0.00030136,6]
[385775799,1758031854931,-464.61,0.00030136,6]
[385775800,1758031854942,-400.0,0.00030136,6]
[385775801,1758031854954,-400.0,0.00030136,6]
[385775802,1758031854965,-400.0,0.00030136,6]
[385775803,1758031854975,-400.0,0.00030136,6]
[385775804,1758031854985,-400.0,0.00030136,6]
[385775805,1758031854995,-715.81,0.00030136,6]
[385775806,1758031855005,-400.0,0.00030136,6]
[385775807,1758031855015,-490.58373489,0.00030136,6]
[385775808,1758031855026,-360.98645717,0.00030136,6]
[385775809,1758031861764,195.0,0.0002739,120]
[385775810,1758031862388,2500.0,0.0002739,120]
[385775813,1758032074493,153.19,0.00013507,2]
[385775814,1758032074791,134.39306732,0.00014218,2]
[385775815,1758032074815,18.79693268,0.00014218,2]
[385775816,1758032075021,153.19,0.00014929,2]
[385775817,1758032075235,153.19,0.0001564,2]
[385775818,1758032075460,153.19,0.00016351,2]
[385775819,1758032075874,153.19,0.00017062,2]
[385775820,1758032075956,153.19,0.00017773,2]
[385775821,1758032076157,153.19,0.00018483,2]
[385775822,1758032076370,153.19,0.00019194,2]
[385775826,1758032280095,-164.5466,0.0001975,2]
[385775827,1758032280118,-28.808152,0.0001975,2]
[385775828,1758032283581,-190.40125076,0.0001975,2]
[385775830,1758032350182,189.64,0.00026022,120]
[385775833,1758032401880,-207.0373681,0.00019805,2]
[385775834,1758032403383,-137.68128309,0.00019805,2]
[385775839,1758032496101,-153.19,0.00019905,2]
[385775840,1758032496125,-153.19,0.00020616,2]
[385775852,1758032645612,301.00916244,0.0001,3]
[385775853,1758032708692,992.61083756,0.0002,2]
[385775854,1758032708716,2500.0,0.0002,2]
[385775867,1758032867417,12242.42062857,0.0002,5]
[385775868,1758032876874,4118.98687154,0.00018,2]
[385775869,1758032876896,5210.11380422,0.00018,2]
[385775870,1758032876918,847.5580129,0.00018,2]
[385775872,1758032895520,3066.22482121,0.0001439,2]
[385775876,1758032916735,978.17655417,0.0002,7]
[385775880,1758032928038,1296.33097011,0.00015,2]
[385775881,1758032928062,5210.11380422,0.00015,2]
[385775882,1758032928085,2271.20403862,0.00015,2]
[385775911,1758033032363,-325.25332309,0.00019899,2]
[385775912,1758033032375,-358.30667691,0.00019899,2]
[385775913,1758033032386,-1200.0,0.00019999,2]
[385775914,1758033032396,-300.0,0.00019999,2]
[385775915,1758033032405,-20.86935,0.00019999,2]
[385775916,1758033032453,-479.13065,0.00019999,2]
[385775917,1758033032462,-205.89635899,0.00019999,2]
[385775918,1758033032472,-210.64575112,0.00019999,2]
[385775919,1758033032481,-316.05153429,0.00019999,2]
[385775920,1758033032490,-2105.2357537,0.0002,2]
[385775921,1758033032501,-890.18,0.0002,2]
[385775922,1758033032513,-604.1800007,0.0002,2]
[385775923,1758033032525,-1384.32,0.0002,2]
[385775924,1758033032548,-672.06598027,0.0002,2]
[385775925,1758033032560,-315.63059454,0.0002,2]
[385775929,1758033032653,-9848.30398092,0.0002,2]
[385776492,1758033038172,-2219.85,0.0002,2]
[385776733,1758033040258,-29926.16234066,0.0002,2]
[385776744,1758033040349,-1368.92071306,0.0002,2]
[385776755,1758033040446,-1396.707323,0.0002,2]
[385776757,1758033040456,-1150.58488731,0.00020202,2]
[385776759,1758033040465,-172.65,0.00020363,2]
[385776761,1758033040474,-1871.40268381,0.0002085,2]
[385776763,1758033040484,-153.19,0.00021327,2]
[385776765,1758033040494,-346.44587853,0.00021849,2]
[385776767,1758033040503,-460.4094212,0.00021881,2]
[385776769,1758033040515,-19.5905788,0.00021881,2]
[385776771,1758033040525,-153.19,0.00022038,2]
[385776773,1758033040534,-153.19,0.00022749,2]
[385776775,1758033040543,-153.19,0.0002346,2]
[385776777,1758033040552,-3814.17275024,0.00024,5]
[385776779,1758033040563,-1185.83604803,0.00024,5]
[385776781,1758033040574,-153.19,0.00024171,2]
[385776783,1758033040589,-150.0,0.00024347,7]
[385776785,1758033040599,-168.0,0.00024697,2]
[385776787,1758033040609,-267.46074303,0.00024866,2]
[385776789,1758033040625,-160.0,0.00024871,2]
[385776791,1758033040636,-515.95536276,0.00024871,2]
[385776794,1758033040645,-160.0,0.00024871,2]
[385776796,1758033040655,-153.19,0.00024882,2]
[385776798,1758033040665,-1185.44153094,0.00024885,2]
[385776800,1758033040674,-151.0,0.00024885,2]
[385776802,1758033040683,-500.0,0.00024885,2]
[385776804,1758033040692,-500.0,0.00024885,2]
[385776806,1758033040702,-500.0,0.00024885,2]
[385776808,1758033040711,-500.0,0.00024885,2]
[385776810,1758033040721,-151.0,0.00024885,2]
[385776812,1758033040730,-151.0,0.00024885,2]
[385776814,1758033040739,-509.09268663,0.00024885,2]
[385776816,1758033040749,-151.0,0.00024885,2]
[385776818,1758033040758,-221.18288143,0.00024885,2]
[385776820,1758033040768,-322.6107,0.00024885,2]
[385776822,1758033040778,-1000.0,0.000249,2]
[385776823,1758033040787,-1038.87484688,0.000249,2]
[385777081,1758033043180,-1168.51581228,0.000249,2]
[385777084,1758033043191,-3242.79001,0.000249,2]
[385777407,1758033046283,-151.0,0.00024885,2]
[385777409,1758033046292,-151.0,0.00024885,2]
[385777411,1758033046302,-151.0,0.00024885,2]
[385777413,1758033046311,-63.51911572,0.00024885,2]
[385777415,1758033046322,-87.48088428,0.00024885,2]
[385777417,1758033046331,-1072.61592939,0.000249,2]
[385777420,1758033046350,-3977.7560635,0.000249,2]
[385779350,1758033282463,153.25,0.00012921,2]
[385779351,1758033282528,153.25,0.00014536,2]
[385779352,1758033282593,153.25,0.00016151,2]
[385779353,1758033282656,153.25,0.00017766,2]
[385779354,1758033282796,153.25,0.00019381,2]
[385779355,1758033283773,189.6,0.00025841,120]
[385779356,1758033291865,-500.0,0.000199,2]
[385779357,1758033331536,-180.89177813,0.000199,2]
[385779358,1758033331558,-2000.0,0.00020895,3]
[385779359,1758033331581,-153.25,0.00020996,2]
[385779372,1758033647928,160.6,0.00021,5]
[385779373,1758033650456,1705.25822187,0.00021,2]
[385779388,1758033839671,250.0,0.00015,2]
[385779389,1758033840740,300.0,0.00017,2]
[385779395,1758034232409,-170.83,0.00020149,2]
[385779396,1758034232420,-687.24077658,0.00020858,3]
[385779397,1758034232430,-624.13742005,0.00021567,2]
[385779398,1758034232535,-1290.86357287,0.00021567,2]
[385779403,1758034232967,-179.43217998,0.00021567,2]
[385779404,1758034232977,-201.52874985,0.00022064,2]
[385779406,1758034232987,-250.0,0.00022164,2]
[385779407,1758034232997,-250.0,0.00022164,2]
[385779408,1758034233007,-250.0,0.00022164,2]
[385779409,1758034233016,-511.3499661,0.00022164,3]
[385779411,1758034233031,-1488.6500339,0.00022164,3]
[385779413,1758034233041,-27.99995796,0.00022611,2]
[385779416,1758034233063,-125.25004204,0.00022611,2]
[385779418,1758034233073,-2957.432137,0.00022684,2]
[385779420,1758034233083,-300.0,0.00022799,2]
[385779422,1758034233093,-221.236074,0.00022799,2]
[385779424,1758034233103,-497.45202579,0.00022799,2]
[385779426,1758034233113,-22914.30567774,0.000228,2]
[385779428,1758034233124,-515.95536276,0.00023603,2]
[385779430,1758034233134,-322.6107,0.00023736,2]
[385779432,1758034233144,-151.0,0.00023736,2]
[385779434,1758034233155,-101.33917433,0.00023736,2]
[385779466,1758034238363,-49.66082567,0.00023736,2]
[385779467,1758034238373,-151.0,0.00023736,2]
[385779468,1758034238383,-151.0,0.00023736,2]
[385779469,1758034238392,-151.0,0.00023736,2]
[385779470,1758034238401,-151.0,0.00023736,2]
[385779471,1758034238411,-151.0,0.00023736,2]
[385779472,1758034238420,-151.0,0.00023736,2]
[385779473,1758034238429,-267.46074303,0.00023736,2]
[385779474,1758034238438,-63.61038556,0.00023736,2]
[385779475,1758034238645,-87.38961444,0.00023736,2]
[385779476,1758034238655,-151.0,0.00023736,2]
[385779477,1758034238664,-151.0,0.00023736,2]
[385779478,1758034238674,-151.0,0.00023736,2]
[385779479,1758034238683,-151.0,0.00023736,2]
[385779480,1758034238693,-151.0,0.00023736,2]
[385779481,1758034238703,-151.0,0.00023736,2]
[385779482,1758034238712,-500.0,0.00023736,2]
[385779483,1758034238722,-153.25,0.00024226,2]
[385779484,1758034238732,-651.28081276,0.00024375,2]
[385779485,1758034238744,-1305.90493124,0.00024375,2]
[385779486,1758034238755,-137.2474289,0.00024375,2]
[385779487,1758034238765,-202.5835292,0.0002466,2]
[385779502,1758034240613,-2207.5629149,0.0002466,2]
[385779503,1758034240625,-11955.2846198,0.0002466,2]
[385779504,1758034240634,-168.0,0.00024735,2]
[385779505,1758034240644,-201.52874984,0.000248,2]
[385779506,1758034240653,-4522.85869442,0.000249,2]
[385779507,1758034240665,-10560.27901419,0.000249,2]
[385779574,1758034243661,-150.61,0.00024505,2]
[385779575,1758034243671,-281.48950577,0.000249,2]
[385779593,1758034246471,-1131.284545,0.000249,2]
[385779594,1758034246481,-2068.05325,0.000249,2]